bitfinex-derivatives/quotes_SOLF0:USTF0_20241226
["timestamp","ask_amount","ask_price","bid_price","bid_amount"]
[1735195367797,3.053,194.24,194.15,2.5779]
[1735195367798,8.15829559,194.22,194.15,8.15829559]
[1735195368095,11.21129559,194.24,194.18,2.5776]
[1735195368994,2.577,194.23,194.18,2.5776]
[1735195369499,11.21129559,194.24,194.18,2.5776]
[1735195369695,10.73549559,194.22,194.18,2.5776]
[1735195369996,8.15829559,194.2,194.12,8.15829559]
[1735195370196,8.15829559,194.18,194.12,8.15829559]
[1735195370592,15.48,194.17,194.05,28.61606995]
[1735195370794,3.1711,194.16,194.05,36.77436554]
[1735195370994,8.15829559,194.15,194.09,2.5788]
[1735195371490,3.1711,194.16,194.11,2.5784]
[1735195372196,3.1711,194.16,194.12,2.5783]
[1735195377489,3.60782523,194.17,194.12,2.5783]
[1735195378695,1.03002523,194.17,194.13,2.5782]
[1735195380303,3.60782523,194.17,194.13,2.5782]
[1735195380502,1.03002523,194.17,194.12,2.5784]
[1735195381503,2.5779,194.16,194.12,2.5784]
[1735195381700,1.03002523,194.17,194.07,3.56]
[1735195381897,1.03002523,194.17,194.09,12.75441794]
[1735195382802,1.03002523,194.17,194.13,2.5781]
[1735195382999,1.03002523,194.17,194.09,12.75441794]
[1735195384201,1.03002523,194.17,194.13,2.5781]
[1735195384702,1.03002523,194.17,194.14,2.5781]
[1735195390008,1.03002523,194.17,194.15,2.578]
[1735195390404,1.03002523,194.17,194.09,12.75441794]
[1735195390603,1.03002523,194.17,194.16,2.5779]
[1735195392106,3.1599,194.21,194.12,12.75441794]
[1735195392302,1.6424,194.21,194.13,3.54]
[1735195392507,1.6424,194.21,194.15,12.75441794]
[1735195392905,14.31561794,194.26,194.15,12.75441794]
[1735195393105,1.5612,194.26,194.15,12.75441794]
[1735195394104,2.5768,194.24,194.2,2.5772]
[1735195395808,8.15556954,194.25,194.18,8.15556954]
[1735195396005,8.15556954,194.21,194.14,8.15556954]
[1735195396609,2.5775,194.19,194.15,2.578]
[1735195398019,8.15556954,194.25,194.18,8.15556954]
[1735195399420,2.5769,194.23,194.19,2.5774]
[1735195401721,2.5768,194.24,194.2,10.73286954]
[1735195402919,2.5767,194.25,194.2,8.15556954]
[1735195403521,1.5612,194.26,194.2,8.15556954]
[1735195403721,1.6588,194.27,194.24,8.15556954]
[1735195404122,1.6588,194.27,194.26,8.15556954]
[1735195404324,2.5762,194.29,194.26,8.15556954]
[1735195404521,11.35146954,194.32,194.24,8.15556954]
[1735195405524,2.5764,194.28,194.24,10.73236954]
[1735195405719,11.35146954,194.32,194.24,10.73236954]
[1735195406623,2.5761,194.29,194.25,2.5766]
[1735195407518,2.5763,194.28,194.24,8.15556954]
[1735195408524,2.5763,194.28,194.24,10.73236954]
[1735195416230,2.5763,194.28,194.25,2.5766]
[1735195416632,2.5761,194.3,194.26,8.15556954]
[1735195417024,3.1959,194.32,194.27,2.5764]
[1735195417327,2.5759,194.31,194.27,2.5764]
[1735195418230,2.5763,194.28,194.24,2.5767]
[1735195421638,2.5763,194.28,194.25,10.73216954]
[1735195423138,2.5763,194.28,194.25,8.15556954]
[1735195424838,2.5763,194.28,194.25,10.73216954]
[1735195425736,2.576,194.3,194.26,2.5765]
[1735195425934,2.576,194.3,194.25,8.15556954]
[1735195426935,3.1959,194.32,194.27,8.15556954]
[1735195427238,3.1959,194.32,194.25,8.15556954]
[1735195427638,2.5762,194.29,194.25,10.73216954]
[1735195428134,3.1959,194.32,194.15,7.18575442]
[1735195428135,8.15556954,194.31,194.15,7.18575442]
[1735195428336,8.15556954,194.29,194.21,8.15556954]
[1735195428540,8.15556954,194.25,194.19,8.15556954]
[1735195428741,2.5769,194.24,194.19,8.15556954]
[1735195429041,8.15556954,194.25,194.19,8.15556954]
[1735195429538,2.5772,194.22,194.19,8.15556954]
[1735195429739,8.15556954,194.25,194.17,8.15556954]
[1735195430035,3.2086,194.24,194.17,8.15556954]
[1735195430337,2.5771,194.22,194.17,8.15556954]
[1735195430639,2.5771,194.22,194.17,10.73316954]
[1735195431438,3.2086,194.24,194.19,8.15556954]
[1735195431638,2.5769,194.23,194.19,8.15556954]
[1735195432042,3.2086,194.24,194.19,8.15556954]
[1735195433448,2.5771,194.22,194.19,8.15556954]
[1735195434445,3.2086,194.24,194.19,8.15556954]
[1735195434646,2.5769,194.23,194.19,10.73296954]
[1735195435246,5.7854,194.24,194.2,2.5773]
[1735195435547,3.2086,194.24,194.19,8.15556954]
[1735195436046,3.2086,194.24,194.21,10.73266954]
[1735195436446,3.2086,194.24,194.22,2.577]
[1735195436645,8.15556954,194.29,194.21,8.15556954]
[1735195436847,3.1982,194.3,194.23,8.15556954]
[1735195437338,2.5763,194.28,194.24,2.5768]
[1735195439049,2.5765,194.27,194.23,10.73246954]
[1735195440849,2.5765,194.27,194.23,8.15556954]
[1735195441047,2.5767,194.25,194.13,28.61606995]
[1735195441243,8.15556954,194.25,194.17,8.15556954]
[1735195441452,8.15556954,194.23,194.17,8.15556954]
[1735195442149,8.15556954,194.23,194.13,28.61606995]
[1735195442351,9.78826954,194.23,194.14,8.15556954]
[1735195442753,17.04081405,194.29,194.22,8.15556954]
[1735195442945,7.09872857,194.29,194.24,8.15556954]
[1735195443250,9.67482857,194.29,194.24,8.15556954]
[1735195443449,3.2763,194.3,194.24,8.15556954]
[1735195444349,3.2763,194.3,194.18,3.4]
[1735195444653,8.15556954,194.28,194.21,8.15556954]
[1735195445551,2.5768,194.25,194.21,8.15556954]
[1735195446753,2.5768,194.25,194.21,10.73276954]
[1735195446954,2.5765,194.27,194.21,8.15556954]
[1735195447153,2.5765,194.27,194.18,3.4]
[1735195447154,11.43186954,194.3,194.23,10.73246954]
[1735195447550,2.5763,194.28,194.23,10.73246954]
[1735195447747,11.43186954,194.3,194.23,8.15556954]
[1735195447951,3.2763,194.3,194.23,8.15556954]
[1735195448347,3.2763,194.3,194.23,10.73246954]
[1735195448857,2.5764,194.28,194.23,8.15556954]
[1735195450462,2.5764,194.28,194.23,10.73246954]
[1735195455162,2.5764,194.28,194.24,2.5768]
[1735195455558,2.5764,194.28,194.25,8.15556954]
[1735195455762,5.8524,194.3,194.25,8.15556954]
[1735195455959,3.2763,194.3,194.27,8.15556954]
[1735195456262,1.582,194.33,194.27,8.15556954]
[1735195457562,2.5759,194.32,194.28,2.5762]
[1735195459867,4.85285329,194.34,194.3,2.5759]
[1735195460165,2.5755,194.34,194.3,2.5759]
[1735195460365,11.31886954,194.36,194.24,3.4]
[1735195460566,11.31886954,194.36,194.27,8.15556954]
[1735195460761,2.5757,194.33,194.29,2.5761]
[1735195462662,2.5755,194.34,194.3,2.576]
[1735195464568,11.31886954,194.36,194.31,2.5758]
[1735195464569,5.7385,194.36,194.31,2.5758]
[1735195464761,5.7385,194.36,194.31,8.15556954]
[1735195465157,3.1633,194.36,194.31,8.15556954]
[1735195466566,3.1633,194.36,194.33,2.5756]
[1735195467271,1.5969,194.36,194.33,2.5756]
[1735195467473,2.5751,194.37,194.33,2.5756]
[1735195467883,2.5752,194.36,194.32,2.5757]
[1735195471085,8.15556954,194.37,194.3,2.576]
[1735195472685,2.5755,194.34,194.3,2.576]
[1735195473084,9.71856954,194.39,194.32,2.5756]
[1735195473286,2.5752,194.37,194.31,8.15556954]
[1735195474581,2.5752,194.37,194.33,2.5756]
[1735195475486,2.5754,194.35,194.31,10.73126954]
[1735195477086,2.5754,194.35,194.32,2.5757]
[1735195478785,2.575,194.38,194.34,2.5755]
[1735195478985,8.15556954,194.4,194.33,8.15556954]
[1735195479187,8.15556954,194.4,194.28,3.38]
[1735195479389,8.15556954,194.4,194.31,8.15556954]
[1735195480487,3.1842,194.42,194.31,8.15556954]
[1735195480687,8.15556954,194.39,194.31,8.15556954]
[1735195481686,8.15556954,194.37,194.31,8.15556954]
[1735195481891,8.15556954,194.37,194.28,11.53556954]
[1735195482093,8.15556954,194.35,194.25,3.38]
[1735195482389,2.576,194.31,194.26,10.73196954]
[1735195483789,2.576,194.31,194.27,2.5763]
[1735195484995,5.8427,194.34,194.29,2.576]
[1735195490393,5.8427,194.34,194.28,8.15556954]
[1735195490597,3.2671,194.34,194.3,8.15556954]
[1735195490793,1.5536,194.36,194.3,8.15556954]
[1735195490992,8.15556954,194.38,194.32,8.15556954]
[1735195491391,3.2336,194.4,194.32,8.15556954]
[1735195491699,8.15556954,194.39,194.32,8.15556954]
[1735195492101,2.5752,194.37,194.33,2.5756]
[1735195493699,3.2336,194.4,194.32,8.15556954]
[1735195493901,2.575,194.38,194.34,10.73096954]
[1735195494203,3.2336,194.4,194.34,8.15556954]
[1735195494404,8.15556954,194.39,194.26,3.38]
[1735195494597,8.15556954,194.39,194.32,8.15556954]
[1735195494797,8.15556954,194.39,194.32,11.53556954]
[1735195495397,3.2336,194.4,194.34,8.15556954]
[1735195496404,3.2336,194.4,194.37,2.575]
[1735195496603,8.15556954,194.44,194.32,3.38]
[1735195496797,11.30816954,194.44,194.36,8.15556954]
[1735195497401,2.5746,194.41,194.36,8.15556954]
[1735195497605,3.1526,194.44,194.38,8.15556954]
[1735195498101,2.5744,194.43,194.38,10.73036954]
[1735195498301,3.1526,194.44,194.36,8.15556954]
[1735195498603,8.15556954,194.43,194.36,8.15556954]
[1735195498802,3.1526,194.44,194.36,8.15556954]
[1735195498998,2.5745,194.41,194.36,10.73076954]
[1735195499199,8.15556954,194.43,194.36,8.15556954]
[1735195499401,3.1526,194.44,194.38,8.15556954]
[1735195499600,2.5744,194.43,194.38,10.73036954]
[1735195500004,3.1526,194.44,194.4,8.15556954]
[1735195500805,3.1526,194.44,194.38,11.53556954]
[1735195501401,5.7268,194.44,194.4,2.5746]
[1735195502304,3.1526,194.44,194.38,14.11046954]
[1735195502901,3.1526,194.44,194.27,28.61606995]
[1735195503108,2.5748,194.39,194.35,8.15556954]
[1735195504205,8.15556954,194.39,194.25,7.18575442]
[1735195504412,8.15556954,194.37,194.29,8.15556954]
[1735195504600,2.5759,194.31,194.26,5.9565]
[1735195504803,8.15556954,194.35,194.27,8.15556954]
[1735195505003,8.15556954,194.35,194.26,5.9565]
[1735195505004,1.5407,194.34,194.26,5.9565]
[1735195505299,8.15556954,194.33,194.25,3.38]
[1735195505502,2.5762,194.29,194.25,11.53556954]
[1735195506609,2.5762,194.29,194.25,3.38]
[1735195506902,2.5762,194.29,194.25,11.53556954]
[1735195507404,2.5762,194.29,194.25,8.15556954]
[1735195509808,2.5762,194.29,194.25,10.73226954]
[1735195511615,2.576,194.3,194.25,10.73226954]
[1735195512114,2.5759,194.32,194.27,8.15556954]
[1735195512918,3.0823,194.34,194.28,2.5761]
[1735195512919,5.6579,194.34,194.28,2.5761]
[1735195513510,2.5757,194.32,194.28,2.5761]
[1735195514215,3.0823,194.34,194.27,8.15556954]
[1735195514511,2.5756,194.33,194.29,2.5761]
[1735195514809,3.0823,194.34,194.27,8.15556954]
[1735195515016,3.0823,194.34,194.29,2.5761]
[1735195515715,5.6579,194.34,194.29,2.5761]
[1735195517615,3.0823,194.34,194.3,2.576]
[1735195518219,5.6578,194.34,194.3,2.576]
[1735195521013,5.6578,194.34,194.27,8.15556954]
[1735195521215,3.0823,194.34,194.23,3.38]
[1735195521416,8.15556954,194.33,194.26,8.15556954]
[1735195521615,8.15556954,194.31,194.16,28.61606995]
[1735195521813,8.15556954,194.31,194.23,8.15556954]
[1735195522012,2.5766,194.26,194.23,8.15556954]
[1735195522219,8.15556954,194.29,194.16,28.61606995]
[1735195522520,8.15556954,194.29,194.21,8.15556954]
[1735195522912,8.15556954,194.29,194.21,10.73266954]
[1735195523522,2.5766,194.26,194.23,8.15556954]
[1735195523722,11.53556954,194.33,194.25,10.73216954]
[1735195524120,11.53556954,194.33,194.26,2.5765]
[1735195524121,2.576,194.3,194.26,2.5765]
[1735195524522,2.5759,194.31,194.26,2.5765]
[1735195524823,2.5759,194.31,194.27,2.5764]
[1735195525123,2.576,194.31,194.27,8.15556954]
[1735195525422,8.15556954,194.33,194.27,8.15556954]
[1735195526420,2.5763,194.3,194.27,8.15556954]
[1735195526618,8.15556954,194.33,194.27,8.15556954]
[1735195527426,2.5761,194.31,194.27,10.73216954]
[1735195528325,2.576,194.32,194.28,2.5765]
[1735195529129,2.576,194.32,194.27,10.73216954]
[1735195529818,2.5762,194.31,194.27,10.73216954]
[1735195530325,3.0823,194.34,194.24,5.9569]
[1735195530326,8.15556954,194.33,194.24,5.9569]
[1735195530523,8.15556954,194.33,194.25,8.15556954]
[1735195531322,2.5764,194.29,194.25,8.15556954]
[1735195532121,2.5764,194.29,194.25,10.73246954]
[1735195533923,2.5767,194.27,194.25,8.15556954]
[1735195534421,2.5767,194.26,194.25,8.15556954]
[1735195534625,8.15556954,194.29,194.22,8.15556954]
[1735195535227,2.5771,194.24,194.22,8.15556954]
[1735195536729,2.5769,194.25,194.22,8.15556954]
[1735195539835,8.15556954,194.27,194.19,8.15556954]
[1735195540027,1.5538,194.26,194.19,8.15556954]
[1735195540229,2.5778,194.18,194.14,2.5783]
[1735195540429,2.5778,194.18,194.15,8.15556954]
[1735195540940,8.15556954,194.23,194.15,10.73376954]
[1735195541441,8.15556954,194.23,194.16,2.578]
[1735195541442,2.5777,194.2,194.16,2.578]
[1735195541641,3.2009,194.26,194.17,8.15556954]
[1735195541832,3.2009,194.26,194.19,8.15556954]
[1735195542537,2.5769,194.25,194.12,3.36]
[1735195542741,2.5769,194.25,194.19,8.15556954]
[1735195543438,2.5769,194.25,194.21,2.5774]
[1735195543742,4.8886,194.28,194.21,8.15556954]
[1735195543942,1.5286,194.28,194.23,8.15556954]
[1735195544140,4.1051,194.28,194.24,2.577]
[1735195544443,1.5286,194.28,194.23,8.15556954]
[1735195544841,2.5766,194.27,194.23,8.15556954]
[1735195546337,1.5286,194.28,194.24,2.5769]
[1735195547443,4.1051,194.28,194.24,2.5769]
[1735195547638,4.1051,194.28,194.23,8.15556954]
[1735195547843,4.1051,194.28,194.23,10.73256954]
[1735195548044,2.5768,194.26,194.21,8.15556954]
[1735195548339,2.5768,194.26,194.21,10.73296954]
[1735195548547,2.5768,194.26,194.21,8.15556954]
[1735195549547,2.5768,194.26,194.22,2.5772]
[1735195550246,1.5286,194.28,194.23,8.15556954]
[1735195550550,8.15556954,194.31,194.23,8.15556954]
[1735195551041,2.5762,194.3,194.26,2.5766]
[1735195551643,2.5761,194.31,194.27,2.5766]
[1735195552442,1.556,194.32,194.25,8.15556954]
[1735195552642,1.556,194.32,194.27,8.15556954]
[1735195553345,1.556,194.32,194.29,2.5763]
[1735195555655,2.5759,194.33,194.29,2.5763]
[1735195558356,1.5603,194.34,194.29,8.15556954]
[1735195558655,9.68846954,194.37,194.31,8.15556954]
[1735195558846,1.5329,194.37,194.31,8.15556954]
[1735195560454,53.91985561,194.39,194.35,2.5755]
[1735195560455,10.73066954,194.39,194.35,2.5755]
[1735195560658,3.1761,194.4,194.33,8.15556954]
[1735195561155,5.751,194.4,194.35,2.5755]
[1735195561355,3.1761,194.4,194.35,2.5755]
[1735195562556,2.575,194.39,194.35,2.5755]
[1735195563256,1.5347,194.4,194.36,2.5754]
[1735195563651,9.72666954,194.43,194.37,8.15556954]
[1735195563652,1.5711,194.43,194.37,8.15556954]
[1735195565659,1.5711,194.43,194.39,2.5749]
[1735195565861,1.5711,194.43,194.39,10.73046954]
[1735195566361,1.5711,194.43,194.39,8.15556954]
[1735195566562,4.145,194.46,194.41,8.15556954]
[1735195566761,1.5622,194.51,194.43,8.15556954]
[1735195566962,9.71776954,194.51,194.45,8.15556954]
[1735195567159,2.5737,194.49,194.45,8.15556954]
[1735195567361,9.71776954,194.51,194.45,8.15556954]
[1735195567664,2.5738,194.49,194.45,8.15556954]
[1735195567958,3.0941,194.53,194.45,8.15556954]
[1735195568165,11.24966954,194.53,194.45,8.15556954]
[1735195568364,2.5735,194.51,194.46,2.5741]
[1735195570262,2.5735,194.51,194.47,8.15556954]
[1735195570464,3.0941,194.53,194.47,10.72946954]
[1735195571157,2.5734,194.51,194.47,8.15556954]
[1735195573362,8.15556954,194.51,194.27,15.47]
[1735195573565,8.15556954,194.51,194.44,8.15556954]
[1735195573763,8.15556954,194.49,194.42,8.15556954]
[1735195573960,8.15556954,194.47,194.4,11.47556954]
[1735195574559,2.5742,194.45,194.4,11.47556954]
[1735195574759,8.15556954,194.47,194.4,11.47556954]
[1735195575066,8.15556954,194.45,194.4,3.32]
[1735195575267,2.5746,194.42,194.38,8.15556954]
[1735195575571,3.32,194.51,194.4,8.15556954]
[1735195575759,8.15556954,194.51,194.43,8.15556954]
[1735195576369,8.15556954,194.51,194.45,8.15556954]
[1735195577569,2.5736,194.5,194.45,10.72976954]
[1735195578269,2.574,194.47,194.45,8.15556954]
[1735195578470,2.574,194.47,194.43,8.15556954]
[1735195581271,2.574,194.47,194.44,8.15556954]
[1735195581472,2.5738,194.49,194.44,10.72986954]
[1735195582172,8.15556954,194.51,194.44,8.15556954]
[1735195583371,2.5741,194.47,194.44,8.15556954]
[1735195583575,8.15556954,194.51,194.44,8.15556954]
[1735195585066,8.15556954,194.49,194.42,11.47556954]
[1735195585271,8.15556954,194.49,194.42,8.15556954]
[1735195585669,8.15556954,194.49,194.42,10.73016954]
[1735195585871,8.15556954,194.51,194.44,8.15556954]
[1735195586875,2.5738,194.49,194.44,10.72976954]
[1735195587271,2.5745,194.44,194.38,2.575]
[1735195587481,2.5745,194.44,194.4,8.15556954]
[1735195587874,8.15556954,194.47,194.4,8.15556954]
[1735195588075,2.5745,194.43,194.4,8.15556954]
[1735195588778,2.5743,194.45,194.4,10.73036954]
[1735195589178,8.15556954,194.47,194.27,15.47]
[1735195589370,8.15556954,194.47,194.4,8.15556954]
[1735195590080,8.15556954,194.47,194.37,5.8952]
[1735195590281,8.15556954,194.47,194.4,8.15556954]
[1735195590578,3.1648,194.46,194.4,8.15556954]
[1735195592577,2.5745,194.43,194.4,8.15556954]
[1735195594675,3.1648,194.46,194.4,8.15556954]
[1735195594676,2.5744,194.44,194.4,8.15556954]
[1735195595272,2.5745,194.43,194.4,8.15556954]
[1735195595873,2.5745,194.43,194.39,2.575]
[1735195596077,2.5745,194.43,194.4,8.15556954]
[1735195596380,2.5744,194.44,194.4,10.73036954]
[1735195596579,3.1648,194.46,194.4,8.15556954]
[1735195597082,2.5743,194.45,194.41,2.5747]
[1735195597283,3.1648,194.46,194.4,8.15556954]
[1735195597876,2.5742,194.46,194.42,8.15556954]
[1735195598780,2.5742,194.45,194.42,10.73016954]
[1735195598981,2.5742,194.45,194.42,8.15556954]
[1735195599882,2.574,194.47,194.44,8.15556954]
[1735195601481,2.5738,194.49,194.44,8.15556954]
[1735195601676,3.1953,194.51,194.37,3.38]
[1735195601883,3.1953,194.51,194.45,8.15556954]
[1735195602189,3.1953,194.51,194.32,22.65575442]
[1735195602190,2.5737,194.5,194.47,10.72946954]
[1735195602586,7.09872857,194.55,194.47,8.15556954]
[1735195602792,7.09872857,194.55,194.43,3.38]
[1735195602793,7.09872857,194.55,194.49,8.15556954]
[1735195602997,8.15556954,194.54,194.47,8.15556954]
[1735195605192,2.5735,194.51,194.47,8.15556954]
[1735195606198,2.5735,194.51,194.47,10.72946954]
[1735195606504,2.5733,194.52,194.47,8.15556954]
[1735195606695,2.5733,194.52,194.49,8.15556954]
[1735195607500,2.5731,194.54,194.49,10.72916954]
[1735195608205,4.8684,194.56,194.49,8.15556954]
[1735195608396,2.5732,194.53,194.49,8.15556954]
[1735195610499,2.5733,194.52,194.48,10.72926954]
[1735195611101,2.5732,194.53,194.49,2.5736]
[1735195611798,2.5732,194.53,194.5,8.15556954]
[1735195612301,2.573,194.54,194.5,10.72906954]
[1735195615406,2.5729,194.55,194.51,2.5734]
[1735195616708,2.5729,194.55,194.52,8.15556954]
[1735195618008,2.5729,194.55,194.52,10.72876954]
[1735195621909,2.5728,194.56,194.52,10.72876954]
[1735195622513,2.5728,194.56,194.53,2.5731]
[1735195623314,2.5724,194.59,194.55,2.5729]
[1735195623513,1.6307,194.6,194.5,3.38]
[1735195623707,1.6307,194.6,194.54,8.15556954]
[1735195624216,2.5727,194.57,194.54,8.15556954]
[1735195624811,2.5725,194.58,194.54,8.15556954]
[1735195626515,2.5725,194.58,194.53,2.5731]
[1735195626814,1.6307,194.6,194.55,8.15556954]
[1735195627916,2.5727,194.57,194.55,8.15556954]
[1735195628410,8.15556954,194.57,194.4,7.11126611]
[1735195628616,3.1614,194.56,194.49,8.15556954]
[1735195629416,2.5733,194.52,194.49,8.15556954]
[1735195629914,2.5734,194.51,194.49,8.15556954]
[1735195630112,3.1614,194.56,194.35,49.94539349]
[1735195630113,8.15556954,194.55,194.35,49.94539349]
[1735195630413,8.15556954,194.55,194.46,8.15556954]
[1735195630618,2.5736,194.5,194.48,8.15556954]
[1735195631316,3.1614,194.56,194.48,8.15556954]
[1735195631524,3.1614,194.56,194.5,8.15556954]
[1735195632519,2.5732,194.53,194.5,8.15556954]
[1735195633013,11.31696954,194.56,194.48,2.5738]
[1735195633220,2.5735,194.51,194.46,2.574]
[1735195633412,2.5735,194.51,194.47,8.15556954]
[1735195634514,11.31696954,194.56,194.45,3.36]
[1735195634515,3.1614,194.56,194.49,8.15556954]
[1735195634709,3.1614,194.56,194.51,8.15556954]
[1735195635418,2.573,194.54,194.51,8.15556954]
[1735195635919,2.5727,194.56,194.53,8.15556954]
[1735195639221,2.5726,194.57,194.53,8.15556954]
[1735195640712,2.5726,194.57,194.53,10.72866954]
[1735195640920,2.5727,194.56,194.53,10.72866954]
[1735195643013,8.15556954,194.59,194.51,3.36]
[1735195643215,8.15556954,194.59,194.52,8.15556954]
[1735195644217,2.5726,194.57,194.52,8.15556954]
[1735195644423,8.15556954,194.59,194.52,8.15556954]
[1735195645123,8.15556954,194.59,194.51,3.36]
[1735195645422,8.15556954,194.57,194.5,8.15556954]
[1735195646424,2.5732,194.53,194.5,8.15556954]
[1735195647915,3.2205,194.6,194.47,2.5738]
[1735195647916,8.15556954,194.55,194.47,2.5738]
[1735195648125,8.15556954,194.51,194.39,7.11126611]
[1735195648316,8.15556954,194.51,194.44,8.15556954]
[1735195648517,2.5739,194.48,194.44,8.15556954]
[1735195648717,8.15556954,194.51,194.44,8.15556954]
[1735195648912,2.574,194.46,194.44,8.15556954]
[1735195649115,2.574,194.46,194.42,8.15556954]
[1735195649524,2.5738,194.48,194.44,8.15556954]
[1735195650021,8.15556954,194.54,194.46,8.15556954]
[1735195650230,2.5733,194.52,194.47,2.5738]
[1735195650520,8.15556954,194.54,194.47,2.5738]
[1735195650715,2.5734,194.51,194.47,2.5738]
[1735195651319,2.5734,194.51,194.46,10.72956954]
[1735195653427,8.15556954,194.54,194.46,8.15556954]
[1735195653625,8.15556954,194.54,194.4,3.36]
[1735195653626,2.5732,194.52,194.48,10.72926954]
[1735195654228,2.5736,194.5,194.46,8.15556954]
[1735195655126,2.5739,194.48,194.4,2.5747]
[1735195655325,8.15556954,194.5,194.44,8.15556954]
[1735195655830,2.574,194.46,194.44,8.15556954]
[1735195657628,2.5739,194.47,194.44,8.15556954]
[1735195658931,2.5737,194.49,194.44,10.72976954]
[1735195659229,2.5737,194.49,194.44,8.15556954]
[1735195660128,8.15556954,194.51,194.44,8.15556954]
[1735195660823,2.574,194.46,194.44,8.15556954]
[1735195661029,8.15556954,194.49,194.42,8.15556954]
[1735195661228,3.1975,194.48,194.42,8.15556954]
[1735195662130,2.5742,194.45,194.42,8.15556954]
[1735195662928,2.5747,194.42,194.38,2.5751]
[1735195663134,8.15556954,194.45,194.38,8.15556954]
[1735195663336,8.15556954,194.45,194.36,8.15556954]
[1735195663534,8.15556954,194.43,194.32,3.3]
[1735195663833,8.15556954,194.39,194.32,8.15556954]
[1735195664031,2.5753,194.37,194.32,10.73146954]
[1735195664232,8.15556954,194.41,194.34,8.15556954]
[1735195665434,2.5751,194.39,194.34,10.73116954]
[1735195666734,2.5748,194.41,194.36,8.15556954]
[1735195667239,2.5748,194.41,194.36,10.73096954]
[1735195667634,2.5745,194.43,194.38,8.15556954]
[1735195668233,2.5745,194.43,194.38,10.73066954]
[1735195668437,10.72986954,194.45,194.38,8.15556954]
[1735195669241,2.5743,194.45,194.4,8.15556954]
[1735195669839,4.7937,194.48,194.42,8.15556954]
[1735195670241,8.15556954,194.47,194.4,8.15556954]
[1735195670435,2.5746,194.43,194.4,8.15556954]
[1735195678848,2.5747,194.42,194.38,8.15556954]
[1735195679141,8.15556954,194.43,194.26,53.54]
[1735195679348,8.15556954,194.41,194.34,8.15556954]
[1735195680139,2.575,194.39,194.34,8.15556954]
[1735195680348,8.15556954,194.41,194.34,8.15556954]
[1735195680747,8.15556954,194.41,194.3,3.3]
[1735195680948,3.153,194.4,194.33,8.15556954]
[1735195682445,2.5755,194.36,194.33,8.15556954]
[1735195684254,2.5756,194.34,194.3,2.5762]
[1735195684461,8.15556954,194.37,194.31,8.15556954]
[1735195685150,2.5755,194.36,194.31,8.15556954]
[1735195685342,8.15556954,194.37,194.31,8.15556954]
[1735195685854,2.5758,194.34,194.31,8.15556954]
[1735195686254,8.15556954,194.37,194.18,7.11126611]
[1735195686554,8.15556954,194.35,194.28,8.15556954]
[1735195687054,2.5758,194.33,194.28,8.15556954]
[1735195687351,8.15556954,194.35,194.28,8.15556954]
[1735195688655,8.15556954,194.37,194.3,8.15556954]
[1735195689554,4.8187,194.39,194.32,8.15556954]
[1735195689754,12.97426954,194.39,194.31,8.15556954]
[1735195691056,2.5758,194.34,194.31,8.15556954]
[1735195692056,12.97426954,194.39,194.31,8.15556954]
[1735195692259,2.5758,194.33,194.31,8.15556954]
[1735195693956,2.5761,194.31,194.26,2.5766]
[1735195694262,2.5761,194.31,194.29,8.15556954]
[1735195696659,2.5762,194.3,194.29,8.15556954]
[1735195696856,8.15556954,194.35,194.26,8.15556954]
[1735195698064,2.5763,194.3,194.26,10.73226954]
[1735195699063,2.5764,194.29,194.26,8.15556954]
[1735195699659,8.15556954,194.33,194.26,8.15556954]
[1735195699865,2.5765,194.28,194.26,8.15556954]
[1735195700967,8.15556954,194.33,194.26,8.15556954]
[1735195701160,2.576,194.31,194.26,8.15556954]
[1735195701361,8.15556954,194.33,194.26,8.15556954]
[1735195702067,2.5761,194.31,194.26,10.73226954]
[1735195704670,3.26,194.37,194.28,8.15556954]
[1735195704977,8.15556954,194.35,194.28,8.15556954]
[1735195706473,2.5758,194.33,194.29,2.5763]
[1735195710075,2.5756,194.34,194.29,2.5763]
[1735195710280,2.5756,194.34,194.3,8.15556954]
[1735195711076,8.15556954,194.37,194.3,8.15556954]
[1735195711281,2.5758,194.33,194.3,8.15556954]
[1735195713674,3.2346,194.38,194.32,8.15556954]
[1735195713970,3.2346,194.38,194.34,8.15556954]